[Event "9th RTU Open 2019"]
[Site "Riga"]
[Date "2019.08.08"]
[Round "5.1"]
[White "Kovalenko, Igor"]
[Black "Puranik, Abhimanyu"]
[Result "1/2-1/2"]
[ECO "A48"]
[WhiteElo "2654"]
[BlackElo "2550"]
[Annotator "ChessBase"]
[PlyCount "250"]
[EventDate "2019.08.05"]
[EventType "swiss"]
[EventCountry "LAT"]
[SourceTitle "playchess.com"]
[Source "ChessBase"]
[SourceQuality "1"]
[TimeControl "5400+30"]

1. d4 {[%emt 0:00:00]} Nf6 {[%emt 0:00:00]} 2. Nf3 {[%emt 0:00:00]} g6 {[%emt 0:00:00]} 3. Bf4 {[%emt 0:00:00]} Bg7 {[%emt 0:00:00]} 4. e3 {[%emt 0:00:00]} d6 {[%emt 0:00:07]} 5. h3 {[%emt 0:00:00]} O-O {[%emt 0:00:25]} 6. c3 {[%emt 0:00:00]} b6 {[%emt 0:04:44]} 7. a4 {[%emt 0:02:23]} a6 {[%emt 0:00:53]} 8. Bc4 {[%emt 0:00:03]} Bb7 {[%emt 0:00:34]} 9. O-O {[%emt 0:00:10]} c5 {[%emt 0:06:24]} 10. Re1 {[%emt 0:01:02]} Nbd7 {[%emt 0:07:12]} 11. Bh2 {[%emt 0:02:03]} Bc6 {[%emt 0:09:34]} 12. d5 {[%emt 0:21:57]} Bxa4 {[%emt 0:03:32]} 13. Qxa4 {[%emt 0:00:03]} b5 {[%emt 0:00:05]} 14. Qa2 {[%emt 0:00:06]} bxc4 {[%emt 0:00:07]} 15. e4 {[%emt 0:00:01]} Nb6 {[%emt 0:04:05]} 16. Na3 {[%emt 0:00:16]} Qd7 {[%emt 0:04:28]} 17. Nd2 {[%emt 0:00:44]} Qc7 {[%emt 0:16:15]} 18. Ndxc4 {[%emt 0:03:15]} Nfd7 {[%emt 0:00:35]} 19. Bg3 {[%emt 0:01:45]} Nxc4 {[%emt 0:03:17]} 20. Nxc4 {[%emt 0:00:02]} a5 {[%emt 0:00:07]} 21. Qb3 {[%emt 0:16:45]} Rfb8 {[%emt 0:04:27]} 22. Qc2 {[%emt 0:02:11]} Kf8 {[%emt 0:01:32]} 23. Re2 {[%emt 0:09:44]} Nb6 {[%emt 0:01:10]} 24. Ne3 {[%emt 0:00:02]} a4 {[%emt 0:04:13]} 25. Ra3 {[%emt 0:00:38]} c4 {[%emt 0:00:31]} 26. f4 {[%emt 0:00:27]} Ra5 {[%emt 0:01:09]} 27. Bf2 {[%emt 0:01:36]} Rb5 {[%emt 0:02:11]} 28. Qc1 {[%emt 0:02:43]} Rb3 {[%emt 0:04:18]} 29. Qa1 {[%emt 0:00:18]} Qb7 {[%emt 0:05:43]} 30. Kh2 {[%emt 0:02:50]} h5 {[%emt 0:03:26]} 31. g3 {[%emt 0:01:57]} e6 {[%emt 0:02:18]} 32. dxe6 {[%emt 0:07:40]} fxe6 {[%emt 0:03:43]} 33. Ng2 {[%emt 0:01:49]} Kf7 {[%emt 0:02:49]} 34. Nh4 {[%emt 0:06:17]} Nd7 {[%emt 0:02:03]} 35. Rxb3 {[%emt 0:00:59]} Qxb3 {[%emt 0:02:07]} 36. f5 {[%emt 0:00:33]} Ne5 {[%emt 0:01:06]} 37. Bd4 {[%emt 0:00:33]} exf5 {[%emt 0:01:25]} 38. exf5 {[%emt 0:01:12]} g5 {[%emt 0:00:02]} 39. Bxe5 {[%emt 0:00:26]} Bxe5 {[%emt 0:00:41]} 40. Nf3 {[%emt 0:00:23]} Bf6 {[%emt 0:00:45]} 41. Qc1 {[%emt 0:00:32]} Re8 {[%emt 0:00:53]} 42. Rf2 {[%emt 0:01:14]} Qb6 {[%emt 0:00:26]} 43. Kg2 {[%emt 0:02:38]} Qe3 {[%emt 0:00:53]} 44. Qf1 {[%emt 0:05:47]} Qe4 {[%emt 0:00:25]} 45. Kh2 {[%emt 0:00:02]} d5 {[%emt 0:00:29]} 46. Nd2 {[%emt 0:01:58]} Qe3 {[%emt 0:00:48]} 47. Qg2 {[%emt 0:00:27]} Kg7 {[%emt 0:00:39]} 48. Nf1 {[%emt 0:00:17]} Qe5 {[%emt 0:00:17]} 49. Qf3 {[%emt 0:00:11]} Kh6 {[%emt 0:00:54]} 50. Rd2 {[%emt 0:01:04]} Qe4 {[%emt 0:00:06]} 51. Qg2 {[%emt 0:05:03]} Qxg2+ {[%emt 0:00:25]} 52. Kxg2 {[%emt 0:00:02]} g4 {[%emt 0:00:09]} 53. h4 {[%emt 0:01:01]} Re5 {[%emt 0:00:23]} 54. Kf2 {[%emt 0:00:41]} Rxf5+ {[%emt 0:00:14]} 55. Ke2 {[%emt 0:00:00]} Kg6 {[%emt 0:01:45]} 56. Rd1 {[%emt 0:00:51]} a3 {[%emt 0:00:30]} 57. bxa3 {[%emt 0:00:02]} Bxc3 {[%emt 0:00:20]} 58. Ne3 {[%emt 0:00:03]} Rf3 {[%emt 0:00:45]} 59. Rxd5 {[%emt 0:00:07]} Bf6 {[%emt 0:00:18]} 60. a4 {[%emt 0:01:13]} Rxg3 {[%emt 0:00:11]} 61. a5 {[%emt 0:00:03]} Rh3 {[%emt 0:00:44]} 62. Nxc4 {[%emt 0:00:28]} Rh2+ {[%emt 0:00:19]} 63. Ke3 {[%emt 0:00:34]} Ra2 {[%emt 0:00:58]} 64. Ne5+ {[%emt 0:01:22]} Kg7 {[%emt 0:00:14]} 65. Nd3 {[%emt 0:02:39]} g3 {[%emt 0:00:46]} 66. Nf4 {[%emt 0:00:08]} g2 {[%emt 0:00:29]} 67. Nxg2 {[%emt 0:01:08]} Rxg2 {[%emt 0:00:04]} 68. Rxh5 {[%emt 0:00:02]} Ra2 {[%emt 0:00:12]} 69. Rd5 {[%emt 0:01:12]} Bc3 {[%emt 0:00:39]} 70. Rd7+ {[%emt 0:00:29]} Kf6 {[%emt 0:00:10]} 71. h5 {[%emt 0:00:16]} Rxa5 {[%emt 0:00:48]} 72. h6 {[%emt 0:00:05]} Kg6 {[%emt 0:00:09]} 73. h7 {[%emt 0:00:08]} Ra4 {[%emt 0:00:27]} 74. Kf3 {[%emt 0:00:12]} Bg7 {[%emt 0:00:04]} 75. Rc7 {[%emt 0:00:15]} Kxh7 {[%emt 0:00:07]} 76. Rc6 {[%emt 0:00:02]} Ba1 {[%emt 0:01:00]} 77. Ke3 {[%emt 0:00:07]} Kg7 {[%emt 0:00:03]} 78. Kd3 {[%emt 0:00:02]} Bf6 {[%emt 0:00:11]} 79. Rc4 {[%emt 0:00:09]} Ra5 {[%emt 0:00:04]} 80. Ke4 {[%emt 0:00:11]} Kg6 {[%emt 0:00:10]} 81. Kf4 {[%emt 0:00:47]} Be5+ {[%emt 0:00:39]} 82. Ke4 {[%emt 0:00:05]} Kf7 {[%emt 0:00:18]} 83. Rc6 {[%emt 0:00:07]} Ke7 {[%emt 0:00:05]} 84. Rg6 {[%emt 0:00:24]} Bf6 {[%emt 0:00:06]} 85. Rg8 {[%emt 0:00:02]} Ke6 {[%emt 0:00:06]} 86. Re8+ {[%emt 0:00:04]} Be7 {[%emt 0:00:04]} 87. Kd4 {[%emt 0:00:15]} Ra4+ {[%emt 0:00:02]} 88. Kd3 {[%emt 0:00:07]} Kd6 {[%emt 0:00:03]} 89. Rh8 {[%emt 0:00:16]} Bg5 {[%emt 0:00:31]} 90. Rg8 {[%emt 0:00:14]} Bf6 {[%emt 0:00:09]} 91. Rb8 {[%emt 0:00:08]} Kc5 {[%emt 0:00:18]} 92. Rf8 {[%emt 0:00:58]} Be5 {[%emt 0:00:09]} 93. Rd8 {[%emt 0:00:04]} Bd6 {[%emt 0:00:19]} 94. Ke3 {[%emt 0:00:08]} Kd5 {[%emt 0:00:07]} 95. Kd3 {[%emt 0:00:07]} Ra3+ {[%emt 0:00:03]} 96. Kd2 {[%emt 0:00:04]} Rh3 {[%emt 0:00:27]} 97. Rd7 {[%emt 0:00:48]} Ke5 {[%emt 0:00:38]} 98. Rd8 {[%emt 0:00:11]} Bb4+ {[%emt 0:00:28]} 99. Ke2 {[%emt 0:00:06]} Ke4 {[%emt 0:00:15]} 100. Re8+ {[%emt 0:00:05]} Kf4 {[%emt 0:00:05]} 101. Rd8 {[%emt 0:00:49]} Rh2+ {[%emt 0:00:17]} 102. Kd1 {[%emt 0:00:17]} Ke3 {[%emt 0:00:35]} 103. Re8+ {[%emt 0:00:09]} Kd3 {[%emt 0:00:07]} 104. Rd8+ {[%emt 0:00:02]} Kc3 {[%emt 0:00:08]} 105. Ke1 {[%emt 0:00:29]} Kc4+ {[%emt 0:01:24]} 106. Kf1 {[%emt 0:00:04]} Bc5 {[%emt 0:00:08]} 107. Rc8 {[%emt 0:01:06]} Kd4 {[%emt 0:01:41]} 108. Rc6 {[%emt 0:06:15]} Kd5 {[%emt 0:02:02]} 109. Rc8 {[%emt 0:00:09]} Be3 {[%emt 0:00:16]} 110. Re8 {[%emt 0:01:57]} Kd4 {[%emt 0:00:11]} 111. Rd8+ {[%emt 0:00:43]} Ke4 {[%emt 0:00:05]} 112. Ke1 {[%emt 0:00:14]} Bd4 {[%emt 0:03:24]} 113. Kf1 {[%emt 0:00:46]} Rf2+ {[%emt 0:00:19]} 114. Ke1 {[%emt 0:00:02]} Ke3 {[%emt 0:00:09]} 115. Rg8 {[%emt 0:01:55]} Rf3 {[%emt 0:00:49]} 116. Rg2 {[%emt 0:00:22]} Rh3 {[%emt 0:01:11]} 117. Kd1 {[%emt 0:00:16]} Kd3 {[%emt 0:00:46]} 118. Rd2+ {[%emt 0:00:02]} Kc4 {[%emt 0:00:23]} 119. Rg2 {[%emt 0:00:07]} Bc3 {[%emt 0:00:20]} 120. Ke2 {[%emt 0:00:04]} Rd3 {[%emt 0:00:20]} 121. Rg8 {[%emt 0:00:07]} Rh3 {[%emt 0:00:19]} 122. Rc8+ {[%emt 0:00:16]} Kd5 {[%emt 0:00:09]} 123. Kf2 {[%emt 0:00:28]} Ke4 {[%emt 0:00:10]} 124. Kg2 {[%emt 0:00:02]} Rd3 {[%emt 0:00:06]} 125. Rc4+ {[%emt 0:00:25]} Ke5 {[%emt 0:00:04]} 1/2-1/2

[Event "9th RTU Open 2019"]
[Site "Riga"]
[Date "2019.08.08"]
[Round "5.2"]
[White "Abasov, Nijat"]
[Black "Pultinevicius, Paulius"]
[Result "1/2-1/2"]
[ECO "D10"]
[WhiteElo "2641"]
[BlackElo "2481"]
[Annotator "ChessBase"]
[PlyCount "87"]
[EventDate "2019.08.05"]
[EventType "swiss"]
[EventCountry "LAT"]
[SourceTitle "playchess.com"]
[Source "ChessBase"]
[SourceQuality "1"]
[TimeControl "5400+30"]

1. c4 {[%emt 0:03:36]} c6 {[%emt 0:00:00]} 2. Nc3 {[%emt 0:04:06]} d5 {[%emt 0:00:01]} 3. d4 {[%emt 0:00:48]} Nf6 {[%emt 0:00:06]} 4. cxd5 {[%emt 0:00:07]} cxd5 {[%emt 0:00:08]} 5. Bf4 {[%emt 0:00:05]} a6 {[%emt 0:00:49]} 6. e3 {[%emt 0:00:39]} Nc6 {[%emt 0:00:19]} 7. Bd3 {[%emt 0:01:07]} Bg4 {[%emt 0:03:47]} 8. Nge2 {[%emt 0:00:15]} e6 {[%emt 0:00:36]} 9. O-O {[%emt 0:00:51]} Bd6 {[%emt 0:04:00]} 10. Qd2 {[%emt 0:08:31]} Bxe2 {[%emt 0:04:25]} 11. Nxe2 {[%emt 0:00:47]} O-O {[%emt 0:01:18]} 12. Rfc1 {[%emt 0:00:16]} Bxf4 {[%emt 0:00:43]} 13. Nxf4 {[%emt 0:00:11]} Qd6 {[%emt 0:00:22]} 14. Rc3 {[%emt 0:05:13]} Rfc8 {[%emt 0:03:35]} 15. Rac1 {[%emt 0:00:50]} Rc7 {[%emt 0:05:16]} 16. a3 {[%emt 0:06:49]} h6 {[%emt 0:03:48]} 17. h3 {[%emt 0:01:12]} Rac8 {[%emt 0:03:34]} 18. b4 {[%emt 0:02:46]} Ne7 {[%emt 0:06:58]} 19. Ne2 {[%emt 0:06:02]} Ne4 {[%emt 0:06:49]} 20. Rxc7 {[%emt 0:00:39]} Rxc7 {[%emt 0:00:05]} 21. Qb2 {[%emt 0:01:30]} Qd7 {[%emt 0:02:43]} 22. Rxc7 {[%emt 0:15:54]} Qxc7 {[%emt 0:00:07]} 23. Bxe4 {[%emt 0:00:27]} dxe4 {[%emt 0:00:06]} 24. Qc3 {[%emt 0:00:08]} Qd7 {[%emt 0:03:23]} 25. Qc5 {[%emt 0:00:38]} Nd5 {[%emt 0:01:20]} 26. Nc3 {[%emt 0:00:16]} Nxc3 {[%emt 0:01:36]} 27. Qxc3 {[%emt 0:00:11]} Qd5 {[%emt 0:03:01]} 28. a4 {[%emt 0:00:16]} f5 {[%emt 0:06:00]} 29. Qc2 {[%emt 0:05:41]} Kh7 {[%emt 0:03:48]} 30. g3 {[%emt 0:00:29]} Qd7 {[%emt 0:01:20]} 31. Kg2 {[%emt 0:00:25]} Qe8 {[%emt 0:00:54]} 32. Qc4 {[%emt 0:01:46]} b5 {[%emt 0:05:35]} 33. axb5 {[%emt 0:00:13]} axb5 {[%emt 0:00:02]} 34. Qc5 {[%emt 0:01:09]} Qd7 {[%emt 0:00:17]} 35. h4 {[%emt 0:06:13]} Qd5 {[%emt 0:05:19]} 36. Qf8 {[%emt 0:00:49]} Qc4 {[%emt 0:01:27]} 37. Qe8 {[%emt 0:00:42]} Qd5 {[%emt 0:01:45]} 38. h5 {[%emt 0:00:53]} Qc4 {[%emt 0:01:02]} 39. g4 {[%emt 0:03:34]} Qe2 {[%emt 0:01:41]} 40. Qg6+ {[%emt 0:00:50]} Kh8 {[%emt 0:00:04]} 41. gxf5 {[%emt 0:01:40]} Qf3+ {[%emt 0:00:04]} 42. Kg1 {[%emt 0:00:10]} exf5 {[%emt 0:00:04]} 43. Qe8+ {[%emt 0:01:59]} Kh7 {[%emt 0:00:04]} 44. Qg6+ {[%emt 0:00:07]} 1/2-1/2

[Event "9th RTU Open 2019"]
[Site "Riga"]
[Date "2019.08.08"]
[Round "5.3"]
[White "Thybo, Jesper Sondergaard"]
[Black "Hovhannisyan, Robert"]
[Result "1/2-1/2"]
[ECO "D37"]
[WhiteElo "2528"]
[BlackElo "2640"]
[Annotator "ChessBase"]
[PlyCount "85"]
[EventDate "2019.08.05"]
[EventType "swiss"]
[EventCountry "LAT"]
[SourceTitle "playchess.com"]
[Source "ChessBase"]
[SourceQuality "1"]
[TimeControl "5400+30"]

1. d4 {[%emt 0:06:57]} d5 {[%emt 0:00:00]} 2. Nf3 {[%emt 0:00:07]} e6 {[%emt 0:00:00]} 3. c4 {[%emt 0:00:27]} a6 {[%emt 0:00:18]} 4. cxd5 {[%emt 0:02:31]} exd5 {[%emt 0:00:05]} 5. Nc3 {[%emt 0:00:05]} Nf6 {[%emt 0:00:22]} 6. Bg5 {[%emt 0:02:44]} Be6 {[%emt 0:00:20]} 7. e3 {[%emt 0:01:27]} Nbd7 {[%emt 0:00:19]} 8. Bd3 {[%emt 0:02:35]} Bd6 {[%emt 0:00:33]} 9. O-O {[%emt 0:00:48]} c6 {[%emt 0:03:13]} 10. Bf4 {[%emt 0:07:00]} Qc7 {[%emt 0:01:12]} 11. Bxd6 {[%emt 0:04:00]} Qxd6 {[%emt 0:00:06]} 12. h3 {[%emt 0:01:49]} O-O {[%emt 0:00:14]} 13. Qc2 {[%emt 0:01:31]} Rfe8 {[%emt 0:04:29]} 14. Rab1 {[%emt 0:03:15]} a5 {[%emt 0:06:23]} 15. a3 {[%emt 0:02:18]} g6 {[%emt 0:01:40]} 16. Rfc1 {[%emt 0:03:27]} Rac8 {[%emt 0:07:22]} 17. Na4 {[%emt 0:06:22]} Ne4 {[%emt 0:06:55]} 18. b4 {[%emt 0:05:01]} b5 {[%emt 0:06:28]} 19. Nc5 {[%emt 0:00:20]} Ndxc5 {[%emt 0:01:01]} 20. dxc5 {[%emt 0:01:00]} Qc7 {[%emt 0:02:40]} 21. Nd4 {[%emt 0:03:54]} a4 {[%emt 0:02:32]} 22. Bxe4 {[%emt 0:08:14]} dxe4 {[%emt 0:00:13]} 23. Nxe6 {[%emt 0:00:05]} Rxe6 {[%emt 0:00:10]} 24. Rd1 {[%emt 0:00:03]} Rd8 {[%emt 0:10:06]} 25. Rxd8+ {[%emt 0:00:07]} Qxd8 {[%emt 0:00:04]} 26. Rd1 {[%emt 0:00:03]} Qf6 {[%emt 0:00:35]} 27. Rd4 {[%emt 0:01:39]} Kg7 {[%emt 0:06:51]} 28. Qd1 {[%emt 0:00:10]} h5 {[%emt 0:00:19]} 29. Rd7 {[%emt 0:02:11]} h4 {[%emt 0:06:28]} 30. Qd4 {[%emt 0:00:18]} Qxd4 {[%emt 0:19:27]} 31. exd4 {[%emt 0:00:07]} e3 {[%emt 0:00:08]} 32. Kf1 {[%emt 0:00:41]} Kf8 {[%emt 0:00:24]} 33. d5 {[%emt 0:06:34]} cxd5 {[%emt 0:00:05]} 34. Rxd5 {[%emt 0:00:10]} Re4 {[%emt 0:00:31]} 35. fxe3 {[%emt 0:06:21]} Rxe3 {[%emt 0:02:08]} 36. c6 {[%emt 0:00:06]} Ke7 {[%emt 0:00:53]} 37. Rxb5 {[%emt 0:01:46]} Rxa3 {[%emt 0:01:14]} 38. Rb7+ {[%emt 0:01:21]} Kd8 {[%emt 0:01:54]} 39. b5 {[%emt 0:00:46]} Rb3 {[%emt 0:00:56]} 40. b6 {[%emt 0:08:29]} Kc8 {[%emt 0:00:27]} 41. Rc7+ {[%emt 0:01:01]} Kb8 {[%emt 0:00:07]} 42. Rb7+ {[%emt 0:00:12]} Kc8 {[%emt 0:00:06]} 43. Rc7+ {[%emt 0:00:27]} 1/2-1/2

[Event "9th RTU Open 2019"]
[Site "Riga"]
[Date "2019.08.08"]
[Round "5.4"]
[White "Gajewski, Grzegorz"]
[Black "Grigorov, Grigor"]
[Result "1/2-1/2"]
[ECO "D02"]
[WhiteElo "2613"]
[BlackElo "2501"]
[Annotator "ChessBase"]
[PlyCount "101"]
[EventDate "2019.08.05"]
[EventType "swiss"]
[EventCountry "LAT"]
[SourceTitle "playchess.com"]
[Source "ChessBase"]
[SourceQuality "1"]
[TimeControl "5400+30"]

1. d4 {[%emt 0:02:09]} Nf6 {[%emt 0:00:00]} 2. Nf3 {[%emt 0:00:16]} e6 {[%emt 0:00:00]} 3. Bf4 {[%emt 0:00:15]} d5 {[%emt 0:00:12]} 4. e3 {[%emt 0:00:07]} Bd6 {[%emt 0:00:09]} 5. Ne5 {[%emt 0:01:16]} O-O {[%emt 0:00:29]} 6. Nd2 {[%emt 0:00:18]} c5 {[%emt 0:01:27]} 7. c3 {[%emt 0:00:18]} Qc7 {[%emt 0:03:32]} 8. Bd3 {[%emt 0:00:21]} Nc6 {[%emt 0:07:19]} 9. Ndf3 {[%emt 0:00:36]} Ne4 {[%emt 0:04:24]} 10. O-O {[%emt 0:01:00]} f6 {[%emt 0:02:32]} 11. Nxc6 {[%emt 0:01:02]} Bxf4 {[%emt 0:03:30]} 12. exf4 {[%emt 0:03:15]} bxc6 {[%emt 0:07:59]} 13. g3 {[%emt 0:04:47]} Qb6 {[%emt 0:02:49]} 14. Bxe4 {[%emt 0:10:45]} dxe4 {[%emt 0:00:11]} 15. dxc5 {[%emt 0:00:03]} Qxc5 {[%emt 0:04:25]} 16. Qd4 {[%emt 0:01:16]} Qf5 {[%emt 0:12:31]} 17. Nh4 {[%emt 0:02:55]} Qd5 {[%emt 0:00:26]} 18. Qa4 {[%emt 0:05:31]} e3 {[%emt 0:06:44]} 19. fxe3 {[%emt 0:02:21]} Qd2 {[%emt 0:02:38]} 20. Rf2 {[%emt 0:19:01]} Qxe3 {[%emt 0:00:33]} 21. Qxc6 {[%emt 0:00:14]} Rb8 {[%emt 0:01:09]} 22. Ng2 {[%emt 0:01:32]} Qd3 {[%emt 0:00:46]} 23. Re1 {[%emt 0:06:55]} Rb6 {[%emt 0:00:56]} 24. Qe4 {[%emt 0:04:22]} Qd7 {[%emt 0:00:18]} 25. c4 {[%emt 0:05:18]} Rd6 {[%emt 0:02:20]} 26. c5 {[%emt 0:00:59]} Rd4 {[%emt 0:00:22]} 27. Qe3 {[%emt 0:03:27]} Rd8 {[%emt 0:01:22]} 28. a3 {[%emt 0:03:51]} a5 {[%emt 0:02:50]} 29. Qc3 {[%emt 0:00:20]} Qb5 {[%emt 0:03:33]} 30. Rc2 {[%emt 0:00:51]} Rd3 {[%emt 0:08:34]} 31. Qc4 {[%emt 0:00:02]} Qxc4 {[%emt 0:02:05]} 32. Rxc4 {[%emt 0:00:02]} Rd2 {[%emt 0:00:06]} 33. b4 {[%emt 0:01:12]} axb4 {[%emt 0:00:08]} 34. axb4 {[%emt 0:00:03]} Rb2 {[%emt 0:00:27]} 35. c6 {[%emt 0:01:16]} Rdd2 {[%emt 0:02:49]} 36. Ne3 {[%emt 0:00:01]} Kf7 {[%emt 0:01:08]} 37. c7 {[%emt 0:03:59]} Ke8 {[%emt 0:00:46]} 38. Rd1 {[%emt 0:01:28]} Rxd1+ {[%emt 0:05:17]} 39. Nxd1 {[%emt 0:00:04]} Rb1 {[%emt 0:00:05]} 40. Rd4 {[%emt 0:00:04]} Bd7 {[%emt 0:00:08]} 41. Kf2 {[%emt 0:05:31]} Rc1 {[%emt 0:00:08]} 42. b5 {[%emt 0:00:20]} Rxc7 {[%emt 0:00:10]} 43. b6 {[%emt 0:00:03]} Rb7 {[%emt 0:01:34]} 44. Rb4 {[%emt 0:01:36]} Ke7 {[%emt 0:00:21]} 45. Nb2 {[%emt 0:00:45]} Kd6 {[%emt 0:00:34]} 46. Ke3 {[%emt 0:02:15]} Kc5 {[%emt 0:00:57]} 47. Nd3+ {[%emt 0:00:25]} Kc6 {[%emt 0:00:11]} 48. Rc4+ {[%emt 0:04:06]} Kxb6 {[%emt 0:00:28]} 49. Nc5 {[%emt 0:00:02]} Ra7 {[%emt 0:00:55]} 50. Nxd7+ {[%emt 0:00:04]} Rxd7 {[%emt 0:00:05]} 51. Rc8 {[%emt 0:00:05]} 1/2-1/2

[Event "9th RTU Open 2019"]
[Site "Riga"]
[Date "2019.08.08"]
[Round "5.5"]
[White "Sulskis, Sarunas"]
[Black "Svane, Rasmus"]
[Result "1-0"]
[ECO "C88"]
[WhiteElo "2528"]
[BlackElo "2615"]
[Annotator "ChessBase"]
[PlyCount "161"]
[EventDate "2019.08.05"]
[EventType "swiss"]
[EventCountry "LAT"]
[SourceTitle "playchess.com"]
[Source "ChessBase"]
[SourceQuality "1"]
[TimeControl "5400+30"]

1. e4 {[%emt 0:00:00]} e5 {[%emt 0:00:00]} 2. Nf3 {[%emt 0:00:18]} Nc6 {[%emt 0:00:00]} 3. Bb5 {[%emt 0:02:59]} a6 {[%emt 0:00:47]} 4. Ba4 {[%emt 0:00:07]} Nf6 {[%emt 0:00:10]} 5. O-O {[%emt 0:00:19]} Be7 {[%emt 0:00:18]} 6. Re1 {[%emt 0:00:24]} b5 {[%emt 0:00:19]} 7. Bb3 {[%emt 0:00:05]} O-O {[%emt 0:00:49]} 8. d4 {[%emt 0:04:14]} Nxd4 {[%emt 0:02:46]} 9. Bxf7+ {[%emt 0:00:20]} Rxf7 {[%emt 0:00:43]} 10. Nxe5 {[%emt 0:00:07]} Rf8 {[%emt 0:00:19]} 11. Qxd4 {[%emt 0:00:08]} Bb7 {[%emt 0:03:43]} 12. Nc3 {[%emt 0:04:58]} c5 {[%emt 0:00:50]} 13. Qd1 {[%emt 0:02:11]} b4 {[%emt 0:21:03]} 14. Nd5 {[%emt 0:01:51]} Nxd5 {[%emt 0:00:52]} 15. exd5 {[%emt 0:00:09]} Bd6 {[%emt 0:00:23]} 16. c4 {[%emt 0:16:09]} bxc3 {[%emt 0:26:49]} 17. bxc3 {[%emt 0:00:54]} Rxf2 {[%emt 0:05:27]} 18. Nf3 {[%emt 0:18:16]} Rxf3 {[%emt 0:00:41]} 19. gxf3 {[%emt 0:00:59]} Qf6 {[%emt 0:05:08]} 20. Re4 {[%emt 0:09:49]} Qg6+ {[%emt 0:10:59]} 21. Rg4 {[%emt 0:02:43]} Qh5 {[%emt 0:00:08]} 22. Bf4 {[%emt 0:02:29]} Bxf4 {[%emt 0:01:03]} 23. Rxf4 {[%emt 0:00:07]} Bxd5 {[%emt 0:01:10]} 24. Qd3 {[%emt 0:00:52]} Be6 {[%emt 0:04:57]} 25. Kh1 {[%emt 0:02:18]} Rb8 {[%emt 0:03:46]} 26. Qd6 {[%emt 0:01:45]} Re8 {[%emt 0:01:13]} 27. Rg1 {[%emt 0:00:53]} Qd5 {[%emt 0:04:48]} 28. Qxd5 {[%emt 0:05:27]} Bxd5 {[%emt 0:00:02]} 29. Rg5 {[%emt 0:00:17]} Bxa2 {[%emt 0:03:50]} 30. Rxc5 {[%emt 0:00:34]} Be6 {[%emt 0:00:29]} 31. Kg2 {[%emt 0:00:34]} Rb8 {[%emt 0:00:56]} 32. Rb4 {[%emt 0:00:18]} Ra8 {[%emt 0:00:09]} 33. Kg3 {[%emt 0:01:22]} Kf7 {[%emt 0:00:21]} 34. h4 {[%emt 0:00:37]} g6 {[%emt 0:00:40]} 35. Rb6 {[%emt 0:02:25]} h5 {[%emt 0:01:19]} 36. Kf4 {[%emt 0:01:13]} Kg7 {[%emt 0:00:27]} 37. Ke3 {[%emt 0:03:45]} Kf7 {[%emt 0:00:04]} 38. Ra5 {[%emt 0:02:09]} Rc8 {[%emt 0:00:11]} 39. Kd2 {[%emt 0:00:49]} Rc4 {[%emt 0:00:50]} 40. Rb4 {[%emt 0:00:22]} Rc6 {[%emt 0:00:55]} 41. Rd4 {[%emt 0:00:46]} Ke7 {[%emt 0:00:20]} 42. Ra3 {[%emt 0:03:01]} Bc4 {[%emt 0:00:22]} 43. Ke3 {[%emt 0:00:33]} d5 {[%emt 0:00:46]} 44. Kf4 {[%emt 0:00:44]} Kf6 {[%emt 0:00:22]} 45. Kg3 {[%emt 0:00:30]} Re6 {[%emt 0:00:15]} 46. Rf4+ {[%emt 0:03:08]} Ke7 {[%emt 0:00:10]} 47. Ra1 {[%emt 0:00:55]} Re3 {[%emt 0:00:48]} 48. Rb1 {[%emt 0:00:29]} Bb5 {[%emt 0:00:25]} 49. Rc1 {[%emt 0:01:26]} Re6 {[%emt 0:00:44]} 50. Rd4 {[%emt 0:01:07]} Re5 {[%emt 0:00:11]} 51. Rdd1 {[%emt 0:00:34]} Rf5 {[%emt 0:00:46]} 52. Rd2 {[%emt 0:00:34]} Re5 {[%emt 0:00:36]} 53. Kf2 {[%emt 0:00:17]} Kf6 {[%emt 0:00:27]} 54. Re1 {[%emt 0:01:14]} Rxe1 {[%emt 0:00:38]} 55. Kxe1 {[%emt 0:00:04]} Bc4 {[%emt 0:00:41]} 56. Rb2 {[%emt 0:00:35]} Bb5 {[%emt 0:00:16]} 57. Kf2 {[%emt 0:00:11]} Kf5 {[%emt 0:00:43]} 58. Ke3 {[%emt 0:00:36]} Bc4 {[%emt 0:00:27]} 59. Rb8 {[%emt 0:00:32]} Bb5 {[%emt 0:00:37]} 60. Kd4 {[%emt 0:00:43]} Bc4 {[%emt 0:00:24]} 61. Rf8+ {[%emt 0:00:40]} Ke6 {[%emt 0:00:03]} 62. Ke3 {[%emt 0:01:34]} Ke5 {[%emt 0:00:40]} 63. Rg8 {[%emt 0:01:36]} Kf5 {[%emt 0:00:10]} 64. Kd4 {[%emt 0:00:29]} Kf6 {[%emt 0:00:14]} 65. Kc5 {[%emt 0:00:56]} Kf7 {[%emt 0:01:07]} 66. Rb8 {[%emt 0:00:59]} Ke6 {[%emt 0:00:07]} 67. Re8+ {[%emt 0:00:21]} Kf7 {[%emt 0:00:40]} 68. Re1 {[%emt 0:00:42]} Kf6 {[%emt 0:00:31]} 69. Kd6 {[%emt 0:00:19]} Bb3 {[%emt 0:00:58]} 70. Re6+ {[%emt 0:01:36]} Kf7 {[%emt 0:00:34]} 71. Ke5 {[%emt 0:00:22]} a5 {[%emt 0:00:11]} 72. Ra6 {[%emt 0:00:13]} a4 {[%emt 0:00:07]} 73. Ra7+ {[%emt 0:00:05]} Ke8 {[%emt 0:00:50]} 74. Kf6 {[%emt 0:00:38]} Kd8 {[%emt 0:00:48]} 75. Kxg6 {[%emt 0:00:06]} Kc8 {[%emt 0:00:03]} 76. f4 {[%emt 0:00:31]} Kb8 {[%emt 0:00:02]} 77. Ra5 {[%emt 0:00:20]} Kc7 {[%emt 0:00:35]} 78. f5 {[%emt 0:00:12]} Kb6 {[%emt 0:00:33]} 79. f6 {[%emt 0:01:22]} d4 {[%emt 0:00:06]} 80. Rxa4 {[%emt 0:00:37]} Bxa4 {[%emt 0:00:05]} 81. cxd4 {[%emt 0:00:40]} 1-0